Cogmind - Beta 10.2 @@@ ROGUE MODE // 2021.07.11 @ 13:35:01 // Winter2019/RPGLIKE Player: the cat Result: Core destroyed Performance ------------- Evolutions (0) 0 Regions Visited (1) 200 Robots Destroyed (11) 55 Value Destroyed (184) 184 Prototype IDs (0) 0 Alien Tech Used (0) 0 Bonus (0) 0 TOTAL SCORE: 439 Bonus ------- None Cogmind --------- Core Integrity 0/600 Matter 285/300 Energy 228/250 System Corruption 0% Temperature Cool (594) Movement Core (150) Ox2 Location -10/Materials Parts ------- > --- POWER (1) -------- Ion Engine > --- PROPULSION (2) --- Light Treads Compact Wheel > --- UTILITY (2) ------ Hacking Suite > --- WEAPON (2) ------- Medium Laser > --- INVENTORY (3) ---- Ion Engine Light Treads Small Laser Peak State ------------ > --- POWER ------------ Ion Engine > --- PROPULSION ------- Light Treads Compact Wheel > --- UTILITY ---------- Hacking Suite > --- WEAPON ----------- Medium Laser Small Laser > --- INVENTORY -------- Ion Engine Light Treads Small Laser [Rating: 8] Favorites ----------- Power Ion Engine Engine Ion Engine Propulsion Compact Wheel Treads Light Treads Wheel Compact Wheel Utility Hacking Suite Hackware Hacking Suite Weapon Medium Laser Energy Gun Medium Laser Build | -11 -10 ------- Run | Scr Mat Slots Evolved 3 | 3 . Power . | . . Propulsion 1 | 1 . Utility 1 | 1 . Weapon 1 | 1 . Parts Attached 6 | 5 1 Power 1 | 1 . Engine 1 | 1 . Core . | . . Reactor . | . . Propulsion 2 | 2 . Treads 1 | 1 . Leg . | . . Wheel 1 | 1 . Hover . | . . Flight . | . . Utility 1 | . 1 Device . | . . Storage . | . . Processor . | . . Hackware 1 | . 1 Protection . | . . Artifact . | . . Weapon 2 | 2 . Energy Gun 2 | 2 . Energy Cannon . | . . Ballistic Gun . | . . Ballistic Cannon . | . . Launcher . | . . Special Weapon . | . . Impact Weapon . | . . Slashing Weapon . | . . Piercing Weapon . | . . Special Melee Weapon . | . . Unidentified Prototypes . | . . Parts Lost 1 | . 1 Power . | . . Propulsion . | . . Utility . | . . Weapon 1 | . 1 Highest Loss Streak 1 | . 1 Average Slot Usage (%) 73 | . 73 Engine 14 | . 14 Treads 14 | . 14 Wheel 14 | . 14 Hackware 2 | . 2 Energy Gun 28 | . 28 Naked Turns . | . . Heaviest Build 8 | 8 8 Greatest Support 20 | 20 20 Greatest Overweight (x) . | . . Average Overweight (x) . | . . Largest Inventory Capacity 3 | 3 3 Average Capacity 2 | 2 3 Most Carried 3 | 3 3 Average Carried 2 | 1 3 Final Capacity 3 | 3 3 Final Carried 3 | 3 3 Class Distribution -------------------- 100% | Mutant Dominant Class ---------------- Mutant | -10/Materials Resources | -11 -10 ----------- Run | Scr Mat Matter Collected 273 | 250 23 Remotely . | . . Salvage Created 293 | . 293 Parts 22 | . 22 Haulers Intercepted . | . . Recyclers Shooed 1 | . 1 Parts Field Recycled . | . . Retrieved Matter . | . . Parts Self-Destructed . | . . Prevented . | . . Kills | -11 -10 ------- Run | Scr Mat Combat Hostiles Destroyed 9 | . 9 Guns 9 | . 9 Classes Destroyed 4 | . 4 Recycler 1 | . 1 Operator 1 | . 1 Swarmer 6 | . 6 Grunt 3 | . 3 Best Kill Streak 3 | . 3 Combat Bots Only 3 | . 3 Max Kills in Single Turn 1 | . 1 Gunslinging . | . . Exploded . | . . Melee . | . . Uniques/NPCs Destroyed . | . . Combat | -11 -10 -------- Run | Scr Mat Damage Taken 921 | . 921 Core 755 | . 755 Absorbed by Shields . | . . Redirected to Core 519 | . 519 Core Remaining (%) 100 | 100 . Volleys Fired 48 | . 48 Largest 2 | . 2 Hottest 90 | . 90 Shots Fired 93 | . 93 Gun 93 | . 93 Cannon . | . . Launcher . | . . Special . | . . Kinetic . | . . Thermal 93 | . 93 Explosive . | . . Electromagnetic . | . . Robot Hit Streak 6 | . 6 Robot Miss Streak 5 | . 5 Penetration Max . | . . Secondary Targets 2 | . 2 Max Gunslinging Chain 1 | . 1 Shots Hit Robots 49 | . 49 Core Hits 20 | . 20 Critical Hits . | . . Critical Kills . | . . Critical Parts Destroyed . | . . Melee Attacks . | . . Impact . | . . Slashing . | . . Piercing . | . . Sneak Attacks . | . . Combat Hostiles . | . . Follow-up Attacks . | . . Damage Inflicted 609 | . 609 Guns 609 | . 609 Cannons . | . . Explosions . | . . Melee . | . . Ramming . | . . Kinetic . | . . Thermal 609 | . 609 Explosive . | . . Electromagnetic . | . . Impact . | . . Slashing . | . . Piercing . | . . Highest Corruption . | . . Average Corruption . | . . Corruption Purged . | . . Overload Shots . | . . Overflow Damage . | . . Projectiles . | . . Explosions . | . . Melee . | . . Knockbacks . | . . Impact . | . . Kinetic . | . . Secondary . | . . Self-Inflicted Damage . | . . Shots . | . . Rammed . | . . Targets Rammed . | . . Kicked . | . . Crushed . | . . Highest Temperature 594 | . 594 Average Temperature 166 | . 166 Received Heat Transfer 342 | . 342 Effects 10 | . 10 Shutdowns 4 | . 4 Energy Bleed 2 | . 2 Interference 1 | . 1 Matter Decay 1 | . 1 Short Circuit 1 | . 1 Damage (core) 1 | . 1 Siege Activations . | . . Robots Corrupted . | . . Combat Hostiles . | . . Parts Fried . | . . Impact Corruptions . | . . Robots Melted . | . . Combat Hostiles . | . . Parts Melted 2 | . 2 Heat Transferred 1671 | . 1671 Parts Sabotaged . | . . Parts Stolen . | . . Parts Stripped . | . . Power Chain Reactions . | . . Missiles Intercepted . | . . Alert | -11 -10 ------- Run | Scr Mat Peak Influence 275 | . 275 Initial . | . . Average 109 | . 132 Maximum Alert Level 1 | . 1 Low Security (%) 67 | 100 61 Level 1 32 | . 38 Level 2 . | . . Level 3 . | . . Level 4 . | . . Level 5 . | . . High Security . | . . Max Security . | . . Squads Dispatched 3 | . 3 Investigation . | . . Extermination . | . . Reinforcement 3 | . 3 Assault . | . . Garrison . | . . Intercept . | . . Construction Impeded . | . . Haulers Reinforced . | . . Stealth | -11 -10 --------- Run | Scr Mat Distress Signals 3 | . 3 Communications Jammed . | . . Distress Signals . | . . Times Spotted 19 | . 19 Peak Tracking Total 5 | . 5 Tactical Retreats 2 | . 2 Traps | -11 -10 ------- Run | Scr Mat Traps Triggered . | . . Indirectly . | . . Trap Hack Attempts . | . . Triggered . | . . Disarmed . | . . Reprogrammed . | . . Reused . | . . Traps Extracted . | . . Installed . | . . Triggered . | . . Machines | -11 -10 ---------- Run | Scr Mat Machines Disabled . | . . Max in Single Turn . | . . Machines Sabotaged . | . . Garrisons Compromised . | . . Overloaded Fab Kills . | . . Fab Network Shutdowns . | . . Hacking | -11 -10 --------- Run | Scr Mat Machines Accessed 1 | . 1 Terminals 1 | . 1 Fabricators . | . . Repair Stations . | . . Recycling Units . | . . Scanalyzers . | . . Garrison Access . | . . Total Hacks 4 | . 4 Successful 2 | . 2 Failed 2 | . 2 Catastrophic . | . . Database Lockouts . | . . Manual 4 | . 4 Terminals 4 | . 4 Fabricators . | . . Repair Stations . | . . Recycling Units . | . . Scanalyzers . | . . Garrison Access . | . . Terminal Hacks . | . . Fabricator Hacks . | . . Repair Station Hacks . | . . Recycling Unit Hacks . | . . Scanalyzer . | . . Garrison Access Hacks . | . . Unauthorized Hacks 2 | . 2 Terminals 2 | . 2 Track 1 | . 1 Botnet 1 | . 1 Fabricators . | . . Repair Stations . | . . Recycling Units . | . . Scanalyzers . | . . Garrison Access . | . . Data Cores Recovered . | . . Used . | . . Hacking Detections 1 | . 1 Full Trace Events . | . . Feedback Events . | . . Feedback Blocked . | . . Robot Schematics Acquired . | . . Robots Built . | . . Matter . | . . Time . | . . Total Robot Build Rating . | . . Part Schematics Acquired . | . . Parts Built . | . . Matter . | . . Time . | . . Total Part Build Rating . | . . Parts Repaired . | . . Time . | . . Parts Recycled . | . . Recycled Matter . | . . Retrieved Matter . | . . Retrieved Components . | . . Parts Scanalyzed . | . . Part Schematics Acquired . | . . Parts Damaged . | . . Bothacking | -11 -10 ------------ Run | Scr Mat Used RIF Installer . | . . Robots Hacked . | . . Non-combat . | . . Combat . | . . Robot Hacks Applied . | . . Relay Couplers Released . | . . Robots Rewired . | . . Allies Hacked . | . . Hacks Repelled . | . . Allies | -11 -10 -------- Run | Scr Mat Total Allies . | . . Largest Group . | . . Highest-Rated Group . | . . Highest-Rated Ally . | . . Total Orders . | . . Ally Attacks . | . . Total Damage . | . . Kills . | . . Allies Corrupted . | . . Allies Melted . | . . Intel | -11 -10 ------- Run | Scr Mat Robot Analysis Total . | . . Derelict Logs Recovered . | . . Drone Launches . | . . Drone Recoveries . | . . Exploration | -11 -10 ------------- Run | Scr Mat Turns Passed 417 | 73 344 Spaces Moved 151 | 45 106 Core 2 | 2 . Treads 139 | 33 106 Legs . | . . Wheels 10 | 10 . Hover . | . . Flight . | . . Fastest Speed 50 | 50 160 Average Speed 154 | 141 160 Slowest Speed 160 | 160 160 Overloaded Moves . | . . Propulsion Burnouts . | . . Robots Hopped . | . . Cave-ins Triggered . | . . Exploration Rate (%) 18 | 4 32 Regions Visited 1 Branch Regions . Pre-discovered Areas . | . . Known Exits Taken . | . . Unknown Exits Taken 1 | 1 . Scrap Searched . | . . Spaces Dug . | . . Terrain Destroyed . | . . Melee . | . . Projectile . | . . AOE . | . . Terrain Rammed . | . . Walls Destroyed . | . . Machines Disabled . | . . Actions | -11 -10 --------- Run | Scr Mat Total 239 | 52 187 Wait 28 | . 28 Move 150 | 44 106 Hop . | . . Pick Up 3 | 3 . Fast Attach 6 | 5 1 Attach . | . . Detach . | . . Swap . | . . Drop . | . . Fire 48 | . 48 Melee . | . . Ram . | . . Kick . | . . Crush . | . . Escape Stasis . | . . Rewire . | . . Trap . | . . Miscellaneous 4 | . 4 Route ------- -11/Scrapyard -10/Materials History --------- Turn | Location | Event 12 | -11/Scrapyard | Upgraded with Propulsion slot (x1) 12 | -11/Scrapyard | Upgraded with Utility slot (x1) 12 | -11/Scrapyard | Upgraded with Weapon slot (x1) 14 | -11/Scrapyard | Discovered new exit (range 16) 74 | -11/Scrapyard | Entered Materials 303 | -10/Materials | Build established: Mutant 373 | -10/Materials | Core integrity fell below 50% 394 | -10/Materials | Core integrity fell below 20% 419 | -10/Materials | Core destroyed Last Messages --------------- 00390_ G-34 Mercenary destroyed. 00390_ Switching to secondary target: G-34 Mercenary. 00393_ R-06 Scavenger collects Ion Engine. 00394_ Overheating: Energy bleed (-42). 00396_ R-06 Scavenger collects Aluminum Leg. 00397_ Power failure, Ion Engine shutdown. 00399_ U-05 Engineer lays Concrete. 00400_ R-06 Scavenger collects Lgt. Ion Engine. 00401_ U-05 Engineer lays Concrete. 00402_ G-34 Mercenary destroyed. 00410_ U-05 Engineer lays Concrete. 00412_ Power failure, Ion Engine shutdown. 00413_ Lgt. Treads permanently disabled. 00413_ Overheating: Short circuit. 00415_ R-06 Scavenger collects Aluminum Leg. 00416_ Sml. Laser destroyed. 00417_ Overheating: Energy bleed (-26). 00418_ Power failure, Ion Engine shutdown. 00418_ U-05 Engineer lays Concrete. 00419_ Overheating: Core damaged (-78). Map ----- +----------------------------------------------------+ | | | | | ?????????????????????????????????????????????? | | ?????????????????????????????????????????????? | | ?????????????????????????????????????????????? | | ?????????????????????????????????????????????? | | ?????????????????????????????????????????????? | | ?????????????????????????????????????????????? | | ?????????????????????????????????????????????? | | ?????????????????????????????????????????????? | | ????????????????????????? ???????????????????? | | ????????????????????????#+#??????????????????? | | ???????????????????????? +?????????????????? | | ???????????????????????# #?????????????????? | | ??????????????????????? #?????????????????? | | ???????????????????????# +?????????????????? | | ???????????????????????# #?????????????????? | | ???????????????????????# #?????????????????? | | ???????????????????????# #?????????????????? | | ???????????????????????# #?????????????????? | | ???????????????????????# #?????????????????? | | ???????????????????????# #?????????????????? | | ???????????????????????+ #?????????????????? | | ???????????????????????# #??????#??????????? | | ???????????????????????# % #???? #??????????? | | ?????????############### @ #### +??????????? | | ???????? #??????????? | | ???????? % % #??????????? | | ???? ? """ """ #??????????? | | ?????# """"""""" u ######??????????? | | ?????# """""=rg #???????????????? | | ?????# g "T" #???????????????? | | ?????# #???????????????? | | ?????# % #???????????????? | | ?????# ########+###### #???????????????? | | ????????????# ## ########?????????? | | ????????????# ## # #?????????? | | ????????????# ## %+ ^ #?????????? | | ????????????# "T" +% # #?????????? | | ????????????############# # #?????????? | | ??????????????# ? ## ## #?????????? | | ??????????????# ## ## #?????????? | | ??????????????# """ ## #########?????????? | | ????????k?????# """"" ##k#?????????????????? | | ??????????????#= """"" ## #?????????????????? | | ????????w?????# """"" ##+#########?????????? | | ??????????????# """ ## a #?????????? | | ????## ???????# ##%""""""" #?????????? | | ????# #######+#####+## """""""???????????? | | ????# # """"""????????????? | +----------------------------------------------------+ Best States ------------- Heat Dissipation 25 Energy Generation 10 Energy Capacity 250 Matter Stores 300 Matter Capacity 300 Sight Range 16 Terrain Scan Density 10 Evasion (%) 40 Recoil Reduction 1 Offensive Hacking 10 Item Schematics ----------------- None Robot Schematics ------------------ None Fabricated ------------ Nothing Alien Tech Used ----------------- None Achievements -------------- None Challenges ------------ None RPGLIKE | -11 -10 --------- Run | Scr Mat Levels Raised . | . . XP Earned 4250 | 3000 1250 XP Spent 3000 | 3000 . Upgrades 6 | 6 . Propulsion Slot 1 | 1 . Utility Slot 1 | 1 . Weapon Slot 1 | 1 . Inventory Capacity 3 | 3 . Protomatter Created 59 | . 59 Integrity Restored 78 | . 78 Core 78 | . 78 Protomatter Decayed . | . . Game ------ Seed HeartTransportDisintegrator Manual? 0 Play Time 00:09:32 Cumulative 152.5 hours Start 2021.07.11 @ 13:28:32 End 2021.07.11 @ 13:35:01 Sessions 1 Manual Loads 0 Difficulty Rogue Special Mode Winter2019/RPGLIKE Game No. 46 Rogue 29 Adventurer 17 Explorer 0 Win Type - Total 8 Types 6/0/1/1/0/0/0/0/0 Lore% 67 Gallery% 67 Achievement% 58 Wizard Run 0 Options --------- ASCII 0 Keyboard 0 Movement Arrows Keybinds 0 Fullscreen 1 Font 28/Dina Map View 72x54 Tactical HUD 1 Map Filters NONE Filters NONE Steam 1 RUN: ca96c3d2-f831-4cfe-8f8b-941a7c2d4ec4